bitfinex/quotes_SOLUSD_20250904
["timestamp","ask_amount","ask_price","bid_price","bid_amount"]
[1757012113428,38.38,203.32,203.31,0.67]
[1757012113634,38.38,203.32,203.29,0.12]
[1757012114233,38.38,203.32,203.29,0.79]
[1757012115237,38.38,203.32,203.3,0.67]
[1757012116049,0.14216157,203.36,203.31,3.5998522]
[1757012116258,0.14216157,203.34,203.33,2.9298522]
[1757012116558,38.66216157,203.34,203.33,0.67]
[1757012116746,38.66216157,203.34,203.32,2.9298522]
[1757012116940,38.66216157,203.34,203.32,0.67]
[1757012117247,38.66216157,203.34,203.3,22.11425015]
[1757012117554,38.66216157,203.34,203.31,0.67]
[1757012118644,38.66216157,203.34,203.3,16.52544621]
[1757012118858,38.66216157,203.34,203.3,14.26559401]
[1757012118859,41.59201377,203.34,203.3,14.26559401]
[1757012119247,0.14216157,203.35,203.31,0.67]
[1757012119456,38.5,203.33,203.32,0.67]
[1757012119933,0.14216157,203.35,203.32,0.67]
[1757012120139,38.48,203.34,203.33,0.67]
[1757012120339,38.48,203.34,203.33,3.5998522]
[1757012120562,38.48,203.34,203.33,8.51796561]
[1757012121247,0.14216157,203.38,203.33,8.51796561]
[1757012121445,0.14216157,203.36,203.35,2.9298522]
[1757012121764,38.62216157,203.36,203.35,3.5998522]
[1757012122268,0.03,203.4,203.35,3.5998522]
[1757012122465,0.03,203.4,203.36,0.67]
[1757012122640,38.64216157,203.39,203.38,4.91690431]
[1757012122958,0.14216157,203.39,203.38,5.58690431]
[1757012123257,38.64216157,203.39,203.38,5.58690431]
[1757012123464,0.03,203.4,203.38,8.51675651]
[1757012123764,38.5,203.39,203.38,7.84675651]
[1757012124153,38.5,203.39,203.38,8.51675651]
[1757012124758,0.03,203.4,203.38,8.51675651]
[1757012125066,0.03,203.4,203.39,17.19544621]
[1757012125464,0.03,203.4,203.39,14.26559401]
[1757012125651,0.03,203.4,203.38,1.97097736]
[1757012125967,0.03,203.4,203.39,3.5998522]
[1757012126465,0.03,203.4,203.39,8.51651476]
[1757012128951,0.03,203.4,203.39,14.26559401]
[1757012129152,0.03,203.4,203.39,17.19544621]
[1757012129360,0.03,203.4,203.38,13.59559401]
[1757012129560,0.03,203.4,203.36,13.59559401]
[1757012129746,0.03,203.4,203.36,16.52544621]
[1757012130166,0.03,203.4,203.37,0.67]
[1757012130563,0.03,203.4,203.37,8.51690041]
[1757012130845,0.03,203.4,203.38,0.67]
[1757012132354,0.03,203.4,203.38,5.58682721]
[1757012132559,38.93,203.4,203.39,0.67]
[1757012132758,38.93,203.4,203.39,3.5998522]
[1757012133463,38.93,203.4,203.35,0.67]
[1757012133660,38.93,203.4,203.36,17.19544621]
[1757012133857,38.93,203.4,203.36,21.44274653]
[1757012134178,38.9,203.39,203.37,0.67]
[1757012134350,38.9,203.39,203.37,3.5998522]
[1757012134546,0.03,203.4,203.38,16.52544621]
[1757012134750,0.03,203.4,203.36,18.51289433]
[1757012134751,0.03,203.4,203.39,16.52544621]
[1757012135178,0.03,203.4,203.39,17.19544621]
[1757012136477,0.03,203.4,203.39,22.11210877]
[1757012137557,0.03,203.4,203.39,24.08298901]
[1757012138966,0.03,203.4,203.39,22.11210877]
[1757012139559,0.03,203.4,203.39,23.75781831]
[1757012140773,0.03,203.4,203.39,38.53942014]
[1757012145287,0.03,203.4,203.39,43.11498188]
[1757012145669,0.03,203.4,203.39,43.60664813]
[1757012146271,0.03,203.43,203.42,39.59559401]
[1757012146586,0.03,203.43,203.42,44.66274949]
[1757012146786,0.03,203.43,203.42,45.33274949]
[1757012147091,0.03,203.43,203.42,50.24868695]
[1757012148302,0.03,203.46,203.45,39.59559401]
[1757012148472,1e-08,203.47,203.46,18.17115575]
[1757012148995,1e-08,203.47,203.46,20.82106538]
[1757012149382,1e-08,203.47,203.46,25.73603638]
[1757012152797,0.03,203.48,203.46,25.73603638]
[1757012153102,0.03,203.5,203.48,13.59559401]
[1757012153295,0.03,203.5,203.48,22.74671749]
[1757012153492,0.03,203.5,203.48,23.42671749]
[1757012154205,0.03,203.52,203.5,39.59559401]
[1757012154206,1e-08,203.51,203.5,39.59559401]
[1757012154406,0.03,203.52,203.51,13.59559401]
[1757012154611,0.03,203.52,203.51,18.85115575]
[1757012154910,0.03,203.52,203.51,23.7649192]
[1757012156202,0.03,203.52,203.51,25.73444085]
[1757012156917,0.03,203.52,203.51,20.47887911]
[1757012157112,0.03,203.52,203.51,23.0849192]
[1757012157796,0.03,203.52,203.51,18.50935746]
[1757012157990,0.65,203.52,203.5,4.91395946]
[1757012158193,0.65,203.52,203.5,9.4895212]
[1757012158401,0.03,203.52,203.5,9.4895212]
[1757012158602,0.03,203.52,203.5,5.59395946]
[1757012158902,0.03,203.52,203.51,4.57556174]
[1757012159114,0.03,203.52,203.51,9.48932519]
[1757012161022,0.03,203.52,203.51,10.16932519]
[1757012161692,0.03,203.52,203.51,62.5449192]
[1757012164226,0.03,203.52,203.51,18.17115575]
[1757012164395,5.22556174,203.52,203.46,4.57556174]
[1757012164711,4.57556174,203.5,203.45,1.97029776]
[1757012164914,4.57556174,203.5,203.45,4.57556174]
[1757012164915,0.62,203.49,203.45,4.57556174]
[1757012165133,0.14216157,203.5,203.45,4.57556174]
[1757012165421,0.62,203.48,203.46,13.59559401]
[1757012165618,0.62,203.48,203.44,26.0]
[1757012165822,0.62,203.48,203.45,13.59559401]
[1757012166004,0.62,203.48,203.45,18.17115575]
[1757012166721,0.17216157,203.52,203.48,13.59559401]
[1757012166926,4.57556174,203.49,203.42,0.12]
[1757012167229,4.57556174,203.45,203.42,13.71559401]
[1757012167435,4.57556174,203.43,203.42,0.12]
[1757012168025,5.19556174,203.43,203.42,0.12]
[1757012168234,0.62,203.43,203.42,0.12]
[1757012168400,5.19556174,203.43,203.42,0.12]
[1757012168601,10.25341912,203.43,203.42,0.12]
[1757012171616,5.67785738,203.43,203.42,0.12]
[1757012171827,10.25341912,203.43,203.42,0.12]
[1757012172410,5.67785738,203.43,203.42,0.12]
[1757012172642,39.5,203.43,203.42,0.12]
[1757012172820,44.07556174,203.43,203.42,0.12]
[1757012173125,44.21772331,203.43,203.42,0.12]
[1757012173715,39.64216157,203.43,203.42,0.12]
[1757012173912,0.14216157,203.43,203.42,0.12]
[1757012174114,39.02216157,203.43,203.42,0.12]
[1757012174319,0.62,203.46,203.42,0.12]
[1757012174626,0.14216157,203.44,203.42,0.12]
[1757012174832,4.57556174,203.46,203.42,5.71593041]
[1757012175136,4.57556174,203.46,203.42,0.8]
[1757012175903,0.14216157,203.46,203.42,0.8]
[1757012177038,39.02216157,203.46,203.42,5.71590664]
[1757012177334,38.88,203.46,203.43,13.59559401]
[1757012177509,4.57556174,203.47,203.43,18.17115575]
[1757012177709,39.02216157,203.47,203.43,18.17115575]
[1757012177911,39.02216157,203.47,203.43,18.87115575]
[1757012178623,39.02216157,203.47,203.43,23.78681814]
[1757012178822,26.0,203.51,203.45,4.57556174]
[1757012179026,38.88,203.5,203.47,4.57556174]
[1757012179334,38.88,203.5,203.47,5.27556174]
[1757012180232,38.88,203.5,203.47,4.57556174]
[1757012180730,38.88,203.5,203.46,13.59559401]
[1757012180922,38.88,203.5,203.46,5.27556174]
[1757012181629,38.88,203.5,203.44,4.91540295]
[1757012181630,0.14216157,203.49,203.44,13.59559401]
[1757012181930,0.14216157,203.49,203.45,5.27556174]
[1757012182233,0.14216157,203.49,203.45,10.19067466]
[1757012182435,0.14216157,203.49,203.46,4.57556174]
[1757012185163,0.14216157,203.49,203.46,5.27556174]
[1757012187016,0.14216157,203.49,203.46,10.19050611]
[1757012188620,0.14216157,203.49,203.46,5.61494437]
[1757012188817,0.14216157,203.49,203.46,10.19050611]
[1757012189017,0.14216157,203.49,203.44,18.17115575]
[1757012189342,0.14216157,203.49,203.44,23.08652739]
[1757012189542,0.14216157,203.49,203.45,5.27556174]
[1757012189731,0.14216157,203.49,203.46,4.57556174]
[1757012189935,0.14216157,203.49,203.46,5.27556174]
[1757012191225,38.8,203.49,203.47,10.19029118]
[1757012191441,0.03,203.51,203.47,5.27556174]
[1757012191647,38.8,203.49,203.47,0.7]
[1757012191830,38.8,203.49,203.47,0.2]
[1757012193954,38.8,203.5,203.48,18.87115575]
[1757012194853,0.03,203.51,203.47,13.59559401]
[1757012195045,39.49,203.5,203.46,4.57556174]
[1757012198553,38.78,203.5,203.47,5.27556174]
[1757012198755,38.28,203.5,203.48,4.57556174]
[1757012198959,38.28,203.5,203.48,5.27556174]
[1757012199340,38.28,203.5,203.47,13.59559401]
[1757012199563,38.99,203.5,203.47,13.59559401]
[1757012201237,38.28,203.5,203.47,13.59559401]
[1757012201439,38.28,203.5,203.48,3.62621701]
[1757012201639,38.28,203.5,203.49,0.7]
[1757012202171,38.7,203.5,203.48,2.92621701]
[1757012204339,38.7,203.5,203.48,7.84064332]
[1757012204638,0.03,203.51,203.5,13.59559401]
[1757012204852,38.71,203.51,203.5,13.59559401]
[1757012205041,38.71,203.51,203.5,14.29559401]
[1757012205660,0.03,203.51,203.5,19.20959892]
[1757012205861,0.03,203.51,203.5,22.13581593]
[1757012208964,0.03,203.51,203.5,19.20959892]
[1757012209266,0.03,203.51,203.5,22.13581593]
[1757012212158,0.03,203.51,203.5,33.84068397]
[1757012212355,0.03,203.51,203.5,22.13581593]
[1757012214068,0.03,203.51,203.5,22.25581593]
[1757012219671,0.03,203.51,203.5,25.18203294]
[1757012219865,1e-08,203.52,203.51,42.52181102]
[1757012220046,1e-08,203.52,203.51,43.72318736]
[1757012220671,1e-08,203.52,203.51,53.61269489]
[1757012221168,1e-08,203.52,203.51,50.68647788]
[1757012221372,1e-08,203.52,203.51,53.61269489]
[1757012221890,1e-08,203.52,203.51,27.61269489]
[1757012222246,1e-08,203.54,203.52,39.59559401]
[1757012222475,1e-08,203.54,203.53,55.53313907]
[1757012222774,1e-08,203.54,203.53,61.15641966]
[1757012224056,1e-08,203.54,203.53,58.23020265]
[1757012224580,1e-08,203.54,203.53,61.15641966]
[1757012226272,1e-08,203.54,203.53,22.63641966]
[1757012226470,1e-08,203.54,203.53,61.21641966]
[1757012227575,1e-08,203.54,203.53,22.63641966]
[1757012227790,1e-08,203.54,203.53,48.63641966]
[1757012227972,1e-08,203.54,203.53,86.70509161]
[1757012228473,1e-08,203.54,203.53,48.14509161]
[1757012228773,1e-08,203.54,203.53,86.70509161]
[1757012228999,1e-08,203.54,203.53,41.56492173]
[1757012229193,1e-08,203.54,203.53,49.40441933]
[1757012229703,1e-08,203.54,203.53,50.11441933]
[1757012229992,1e-08,203.54,203.53,49.40441933]
[1757012230200,1e-08,203.54,203.53,50.11441933]
[1757012231187,1e-08,203.54,203.53,88.77441933]
[1757012232208,1e-08,203.54,203.53,88.06441933]
[1757012232410,1e-08,203.54,203.53,49.40441933]
[1757012234481,1e-08,203.54,203.53,46.47820232]
[1757012234687,1e-08,203.54,203.53,49.40441933]
[1757012236097,1e-08,203.54,203.53,88.02441933]
[1757012237901,1e-08,203.54,203.53,168.02441933]
[1757012241905,1e-08,203.54,203.53,129.40441933]
[1757012242102,1e-08,203.54,203.53,167.96441933]
[1757012243912,0.72000001,203.54,203.53,18.5088746]
[1757012245010,1e-08,203.54,203.53,21.43509161]
[1757012246089,0.72000001,203.54,203.53,21.43509161]
[1757012246294,0.72000001,203.54,203.53,18.5088746]
[1757012246713,0.72000001,203.54,203.53,21.43509161]
[1757012246909,1e-08,203.54,203.53,21.43509161]
[1757012249311,1e-08,203.54,203.53,18.5088746]
[1757012250703,0.72000001,203.54,203.53,13.59559401]
[1757012251101,0.72000001,203.54,203.53,13.71559401]
[1757012252895,1e-08,203.54,203.53,13.71559401]
[1757012253395,1e-08,203.54,203.53,18.6288746]
[1757012253895,0.72000001,203.54,203.53,0.12]
[1757012254109,0.72000001,203.54,203.53,13.71559401]
[1757012255099,0.72000001,203.54,203.53,0.12]
[1757012255707,1e-08,203.54,203.53,0.12]
[1757012256097,1e-08,203.54,203.53,8.6594976]
[1757012256506,1e-08,203.54,203.53,5.73328059]
[1757012256698,1e-08,203.54,203.53,8.6594976]
[1757012257416,1e-08,203.54,203.53,7.9594976]
[1757012257920,1e-08,203.54,203.53,8.6594976]
[1757012259200,1e-08,203.54,203.53,48.74641966]
[1757012259517,1e-08,203.54,203.53,50.71565043]
[1757012261524,1e-08,203.54,203.53,52.35635537]
[1757012263835,1e-08,203.56,203.55,13.59559401]
[1757012264002,1e-08,203.56,203.55,83.11379574]
[1757012264312,1e-08,203.56,203.55,83.81379574]
[1757012264510,1e-08,203.56,203.55,85.78283264]
[1757012264714,1e-08,203.56,203.55,47.32283264]
[1757012264923,1e-08,203.56,203.55,85.78283264]
[1757012265819,1e-08,203.56,203.55,90.69563047]
[1757012267412,1e-08,203.56,203.55,64.69563047]
[1757012267628,0.2,203.61,203.58,39.59559401]
[1757012267929,0.2,203.61,203.58,87.68064529]
[1757012268107,0.2,203.61,203.58,88.34064529]
[1757012268630,0.2,203.61,203.58,90.30919767]
[1757012268804,0.72,203.66,203.58,107.50145623]
[1757012269008,0.72,203.66,203.65,18.16251596]
[1757012269713,0.2,203.69,203.66,13.59559401]
[1757012270109,0.2,203.69,203.65,4.56692195]
[1757012270322,0.72,203.66,203.65,4.56692195]
[1757012271606,0.72,203.66,203.65,9.47730741]
[1757012272312,0.2,203.69,203.65,9.47730741]
[1757012272637,0.2,203.69,203.66,5.22692195]
[1757012273006,0.72,203.68,203.66,4.56692195]
[1757012273211,0.75,203.67,203.66,13.59559401]
[1757012273412,0.75,203.67,203.64,18.16251596]
[1757012273614,0.72,203.66,203.64,18.16251596]
[1757012273914,0.03,203.67,203.65,4.56692195]
[1757012274422,0.75,203.67,203.65,4.56692195]
[1757012274619,0.03,203.67,203.64,23.07307055]
[1757012274822,0.72,203.66,203.65,13.59559401]
[1757012276034,0.03,203.67,203.65,18.50595994]
[1757012276233,0.75,203.67,203.65,18.50595994]
[1757012279230,0.75,203.67,203.65,13.59559401]
[1757012279420,0.03,203.67,203.65,13.59559401]
[1757012279616,0.72,203.66,203.65,13.59559401]
[1757012280816,0.75,203.67,203.65,13.59559401]
[1757012281917,5.28692195,203.66,203.61,4.56692195]
[1757012282109,5.28692195,203.66,203.58,0.66]
[1757012282110,4.56692195,203.64,203.6,13.59559401]
[1757012282315,0.72,203.63,203.6,13.59559401]
[1757012282738,0.72,203.62,203.6,13.59559401]
[1757012282936,4.56692195,203.61,203.56,23.07507245]
[1757012283233,0.72,203.61,203.57,0.66]
[1757012284325,0.72,203.61,203.58,4.91207387]
[1757012284623,4.56692195,203.61,203.59,13.59559401]
[1757012284824,0.72,203.6,203.58,13.59559401]
[1757012285030,0.72,203.59,203.58,13.59559401]
[1757012286116,0.72,203.59,203.56,4.91252118]
[1757012286432,4.56692195,203.6,203.57,13.59559401]
[1757012286636,5.28692195,203.61,203.57,13.59559401]
[1757012286821,0.72,203.6,203.57,13.59559401]
[1757012287743,0.72,203.59,203.57,13.59559401]
[1757012288235,4.56692195,203.6,203.57,13.59559401]
[1757012288435,5.28692195,203.6,203.57,13.59559401]
[1757012289142,0.14216157,203.61,203.57,19.16786317]
[1757012289320,5.28692195,203.62,203.58,0.66]
[1757012289514,4.56692195,203.62,203.57,23.07478512]
[1757012289720,5.28692195,203.62,203.57,23.73478512]
[1757012290342,4.70908352,203.61,203.55,0.12]
[1757012290543,4.70908352,203.56,203.55,0.12]
[1757012290743,43.14908352,203.56,203.55,0.12]
[1757012291044,43.86908352,203.56,203.55,0.12]
[1757012292644,48.78164001,203.56,203.55,0.12]
[1757012293441,10.34164001,203.56,203.55,0.12]
[1757012293739,48.78164001,203.56,203.55,0.12]
[1757012294824,26.0,203.54,203.53,0.12]
[1757012295025,69.14908352,203.54,203.53,0.12]
[1757012295235,69.86908352,203.54,203.53,0.12]
[1757012297044,43.00692195,203.54,203.53,0.12]
[1757012297623,43.14908352,203.54,203.53,0.12]
[1757012297840,43.80908352,203.54,203.53,0.12]
[1757012299040,48.72212272,203.54,203.53,0.12]
[1757012302235,48.74212272,203.54,203.53,0.12]
[1757012304023,5.36908352,203.54,203.53,0.12]
[1757012304249,48.74212272,203.54,203.53,0.12]
[1757012304435,43.16908352,203.54,203.53,0.12]
[1757012307253,43.16908352,203.54,203.53,0.84]
[1757012308053,43.16908352,203.54,203.53,0.12]
[1757012311139,43.16908352,203.54,203.53,0.84]
[1757012312459,0.03,203.55,203.54,13.59559401]
[1757012312967,0.03,203.55,203.54,14.31559401]
[1757012313746,0.03,203.55,203.54,0.72]
[1757012313942,4.59692195,203.55,203.53,13.71559401]
[1757012314158,4.59692195,203.55,203.53,0.12]
[1757012314159,43.00692195,203.54,203.53,0.12]
[1757012314654,43.14908352,203.54,203.53,0.12]
[1757012317490,43.80908352,203.54,203.53,0.12]
[1757012317775,26.14216157,203.52,203.51,0.12]
[1757012317948,73.71600547,203.52,203.51,0.12]
[1757012318270,74.37600547,203.52,203.51,0.12]
[1757012319250,79.28952748,203.52,203.51,0.12]
[1757012319443,74.72260553,203.52,203.51,0.12]
[1757012321854,79.28952748,203.52,203.51,0.12]
[1757012322668,0.14216157,203.51,203.5,0.12]
[1757012322866,9.93600547,203.51,203.5,0.12]
[1757012323248,48.37600547,203.51,203.5,0.12]
[1757012323449,53.88906562,203.51,203.5,0.12]
[1757012323679,26.14216157,203.49,203.48,0.12]
[1757012323844,3.07154238,203.49,203.48,0.12]
[1757012324044,42.19154238,203.49,203.48,0.12]
[1757012325170,47.10578878,203.49,203.48,0.12]
[1757012325350,26.0,203.46,203.42,0.84]
[1757012325551,40.78906562,203.43,203.42,0.12]
[1757012325753,0.14216157,203.42,203.39,0.12]
[1757012326047,3.07154238,203.4,203.39,0.12]
[1757012326259,41.53154238,203.4,203.39,0.12]
[1757012326752,3.07154238,203.4,203.39,0.12]
[1757012326964,41.53154238,203.4,203.39,0.12]
[1757012327563,3.07154238,203.4,203.39,0.12]
[1757012327762,41.53154238,203.4,203.39,0.12]
[1757012328051,3.07154238,203.4,203.39,0.83]
[1757012328264,41.53154238,203.4,203.39,0.83]
[1757012329676,3.07154238,203.4,203.39,0.83]
[1757012329865,41.53154238,203.4,203.39,0.83]
[1757012330950,2.92938081,203.42,203.39,5.74666256]
[1757012331156,38.46,203.41,203.4,0.71]
[1757012332182,38.46,203.41,203.4,5.62642084]
[1757012332862,0.14216157,203.42,203.4,5.62642084]
[1757012333065,38.46,203.41,203.4,4.91642084]
[1757012333679,38.46,203.41,203.4,5.62642084]
[1757012336873,0.03,203.42,203.4,5.62642084]
[1757012337075,38.46,203.41,203.4,4.91642084]
[1757012337667,38.46,203.41,203.4,5.62642084]
[1757012339883,38.7551,203.41,203.4,0.71]
[1757012340071,38.7551,203.41,203.39,0.12]
[1757012340268,3.22448081,203.41,203.39,5.74662977]
[1757012340467,0.2951,203.41,203.4,0.71]
[1757012340675,38.7551,203.41,203.4,0.71]
[1757012341078,41.68448081,203.41,203.4,0.71]
[1757012341562,38.7551,203.41,203.4,0.71]
[1757012341763,41.68448081,203.41,203.4,0.71]
[1757012342985,38.7551,203.41,203.4,0.71]
[1757012343491,38.7551,203.41,203.4,5.62642084]
[1757012344978,38.7551,203.41,203.4,0.71]
[1757012346075,38.7551,203.41,203.39,13.71559401]
[1757012346288,38.7551,203.41,203.39,14.42559401]
[1757012346690,38.7551,203.41,203.39,18.63220334]
[1757012346992,38.7551,203.41,203.4,5.62642084]
[1757012347799,0.2951,203.41,203.4,19.22201485]
[1757012347985,0.2951,203.41,203.4,22.15139566]
[1757012348182,0.2951,203.41,203.4,24.1221788]
[1757012350681,0.2951,203.41,203.4,21.19279799]
[1757012350881,0.2951,203.41,203.4,23.4121788]
[1757012351192,0.2951,203.41,203.4,24.1221788]
[1757012353390,0.2951,203.41,203.4,21.19279799]
[1757012353581,0.2951,203.41,203.4,21.31279799]
[1757012353890,0.2951,203.41,203.4,0.12]
[1757012354077,1.0051,203.41,203.4,0.12]
[1757012354990,0.2951,203.41,203.4,5.03642084]
[1757012355491,1.0051,203.41,203.4,0.12]
[1757012355890,3.93448081,203.41,203.4,0.12]
[1757012356276,1.0051,203.41,203.4,0.12]
[1757012356482,3.22448081,203.41,203.4,0.12]
[1757012356689,3.93448081,203.41,203.4,0.12]
[1757012358171,3.22448081,203.41,203.4,0.12]
[1757012358372,3.93448081,203.41,203.4,0.12]
[1757012359396,1.0051,203.41,203.4,0.12]
[1757012359691,0.2951,203.41,203.4,17.31497482]
[1757012360193,38.7551,203.41,203.4,22.23139566]
[1757012360694,0.2951,203.41,203.4,22.23139566]
[1757012361294,0.2951,203.41,203.4,33.9489189]
[1757012361672,0.2951,203.41,203.4,22.23139566]
[1757012363476,0.2951,203.41,203.4,37.01226921]
[1757012365990,0.2951,203.41,203.4,22.23139566]
[1757012368898,0.2951,203.41,203.4,21.56139566]
[1757012369307,0.2951,203.41,203.4,22.23139566]
[1757012369507,0.2951,203.41,203.4,3.04938081]
[1757012369889,0.2951,203.41,203.4,0.12]
[1757012371406,0.2951,203.41,203.4,22.23139566]
[1757012371788,0.2951,203.41,203.4,24.20237302]
[1757012372614,0.2951,203.41,203.4,27.13175383]
[1757012373107,0.2951,203.41,203.4,24.20237302]
[1757012374716,0.2951,203.41,203.4,21.27299221]
[1757012374915,0.2951,203.41,203.4,24.20237302]
[1757012378617,0.2951,203.41,203.4,35.91989626]
[1757012378820,1e-08,203.41,203.4,35.91989626]
[1757012379114,1e-08,203.41,203.4,61.91989626]
[1757012382205,0.03,203.42,203.41,16.52497482]
[1757012382410,0.03,203.42,203.41,17.19497482]
[1757012383528,0.03,203.42,203.41,24.08154878]
[1757012385524,0.03,203.42,203.41,25.72544306]
[1757012389723,0.03,203.42,203.41,20.48216797]
[1757012390117,0.7,203.42,203.41,25.05544306]
[1757012390527,0.7,203.42,203.41,11.45984905]
[1757012390825,0.7,203.42,203.41,23.08504824]
[1757012391211,0.03,203.42,203.41,23.08504824]
[1757012392312,0.03,203.42,203.41,18.51177315]
[1757012392618,0.03,203.42,203.41,23.08504824]
[1757012392925,0.03,203.42,203.41,25.75573429]
[1757012393930,0.03,203.42,203.41,25.05573429]
[1757012398229,0.03,203.42,203.41,25.75573429]
[1757012398610,0.03,203.42,203.41,25.05573429]
[1757012399630,0.03,203.42,203.41,25.75573429]
[1757012399931,0.03,203.42,203.41,25.05573429]
[1757012400106,0.03,203.42,203.41,25.75573429]
[1757012400915,0.03,203.42,203.41,21.1824592]
[1757012401111,0.03,203.42,203.41,25.75573429]
[1757012404112,0.03,203.42,203.41,105.75573429]
[1757012405834,0.03,203.42,203.41,105.05573429]
[1757012406416,0.7,203.42,203.41,15.56628006]
[1757012406617,0.7,203.42,203.41,13.59559401]
[1757012407215,0.7,203.42,203.41,18.51177315]
[1757012407416,0.7,203.42,203.41,13.59559401]
[1757012408331,0.7,203.42,203.4,9.60962996]
[1757012408332,0.14216157,203.41,203.4,0.12]
[1757012408538,4.71543666,203.41,203.4,0.12]
[1757012408743,5.38543666,203.41,203.4,0.12]
[1757012409627,10.3016158,203.41,203.4,0.12]
[1757012410915,48.7216158,203.41,203.4,0.12]
[1757012411319,12.27337042,203.41,203.4,0.12]
[1757012411531,50.69337042,203.41,203.4,0.12]
[1757012411743,5.38543666,203.41,203.4,0.12]
[1757012411926,0.81216157,203.41,203.4,0.12]
[1757012412137,39.09,203.41,203.4,0.12]
[1757012412442,39.09,203.41,203.4,4.69327509]
[1757012412646,39.09,203.41,203.4,0.12]
[1757012413418,39.23216157,203.41,203.4,0.12]
[1757012413623,43.80543666,203.41,203.4,0.12]
[1757012415334,48.7216158,203.41,203.4,0.12]
[1757012415520,74.7216158,203.41,203.4,0.12]
[1757012415724,76.69346762,203.41,203.4,0.12]
[1757012415927,55.26674271,203.41,203.4,0.12]
[1757012416435,0.14216157,203.4,203.39,1e-08]
[1757012416649,9.28871175,203.4,203.39,1e-08]
[1757012416856,9.95871175,203.4,203.39,1e-08]
[1757012417241,5.72858241,203.4,203.39,1e-08]
[1757012417443,10.3018575,203.4,203.39,1e-08]
[1757012417757,48.7218575,203.4,203.39,1e-08]
[1757012418354,44.14858241,203.4,203.39,1e-08]
[1757012418551,53.29513259,203.4,203.39,1e-08]
[1757012420060,53.31513259,203.4,203.39,1e-08]
[1757012421364,53.34513259,203.4,203.39,1e-08]
[1757012422060,55.31727606,203.4,203.39,1e-08]
[1757012422261,16.87727606,203.4,203.39,1e-08]
[1757012422476,0.03,203.4,203.39,1e-08]
[1757012422660,38.47,203.4,203.39,1e-08]
[1757012422966,38.61216157,203.4,203.39,1e-08]
[1757012423264,0.17216157,203.4,203.39,1e-08]
[1757012423455,38.61216157,203.4,203.39,0.67000001]
[1757012423759,38.47,203.4,203.39,0.67000001]
[1757012423963,38.61216157,203.4,203.39,0.67000001]
[1757012424167,38.47,203.4,203.39,5.2432751]
[1757012424357,0.03,203.4,203.39,18.83886911]
[1757012424563,38.47,203.4,203.39,14.26559402]
[1757012424761,0.03,203.4,203.39,18.83886911]
[1757012425179,38.45,203.4,203.39,18.83886911]
[1757012425476,38.45,203.4,203.39,19.18225658]
[1757012425648,38.45,203.4,203.39,1e-08]
[1757012425977,38.59216157,203.4,203.39,1e-08]
[1757012426840,38.59216157,203.4,203.39,4.91666257]
[1757012427039,0.03,203.4,203.39,10.15993766]
[1757012427275,0.03,203.4,203.39,23.75553167]
[1757012427449,0.03,203.4,203.39,25.72660615]
[1757012428668,0.03,203.4,203.39,6.88773705]
[1757012428848,0.03,203.4,203.39,4.91666257]
[1757012429252,0.03,203.4,203.39,5.58666257]
[1757012429661,0.03,203.4,203.39,10.15993766]
[1757012429945,38.45,203.4,203.39,10.15993766]
[1757012430154,38.45,203.4,203.39,5.58666257]
[1757012430354,0.03,203.4,203.39,23.75553167]
[1757012430570,0.03,203.42,203.4,13.59559401]
[1757012430769,1e-08,203.43,203.42,13.59559401]
[1757012430944,1e-08,203.43,203.41,5.58617914]
[1757012431148,1e-08,203.43,203.42,5.24327509]
[1757012432768,1e-08,203.43,203.42,10.15921255]
[1757012434382,1e-08,203.43,203.42,5.58593746]
[1757012434550,1e-08,203.43,203.42,10.15921255]
[1757012434755,1e-08,203.43,203.42,12.12980151]